fUST/lending_fUST_20250630
["ID","MTS","AMOUNT","RATE_DAILY","PERIOD"]
[368662334,1751274649571,-460.0,0.00020107,2]
[368662335,1751274649580,-987.33,0.00020107,2]
[368662336,1751274649589,-460.0,0.00020107,2]
[368662337,1751274649599,-712.32,0.00020107,2]
[368662338,1751274649608,-517.37,0.00020107,2]
[368662339,1751274649617,-2247.3,0.00020107,2]
[368662340,1751274649626,-460.0,0.00020107,2]
[368662341,1751274649636,-653.22,0.00020107,2]
[368662342,1751274649645,-153.12975,0.00020108,2]
[368662343,1751274649654,-151.0,0.00020108,2]
[368662344,1751274649664,-500.0,0.00020109,2]
[368662345,1751274649673,-500.0,0.00020109,2]
[368662346,1751274649682,-500.0,0.00020109,2]
[368662347,1751274649691,-500.0,0.00020109,2]
[368662348,1751274649701,-500.0,0.00020109,2]
[368662349,1751274649711,-500.0,0.00020109,2]
[368662350,1751274649721,-500.0,0.00020109,2]
[368662351,1751274649730,-300.88223154,0.00020109,2]
[368662352,1751274649739,-500.0,0.00020109,2]
[368662353,1751274649748,-500.0,0.00020109,2]
[368662354,1751274649758,-500.0,0.00020109,2]
[368662355,1751274649767,-500.0,0.00020109,2]
[368662356,1751274649776,-500.0,0.00020109,2]
[368662357,1751274649785,-500.0,0.00020109,2]
[368662358,1751274649794,-500.0,0.00020109,2]
[368662359,1751274649803,-500.0,0.00020109,2]
[368662360,1751274649812,-376.16777152,0.00020109,2]
[368662361,1751274649821,-500.0,0.00020109,2]
[368662362,1751274649830,-650.93981368,0.00020109,2]
[368662363,1751274649839,-500.0,0.00020109,2]
[368662364,1751274649849,-500.0,0.00020109,2]
[368662365,1751274649859,-3000.0,0.0002011,2]
[368662366,1751274649868,-3000.0,0.0002012,2]
[368662367,1751274649877,-151.0,0.00020122,2]
[368662368,1751274649886,-3000.0,0.0002013,2]
[368662369,1751274649897,-3000.0,0.0002014,2]
[368662370,1751274649909,-4604.94239583,0.00020141,2]
[368662371,1751274649918,-3000.0,0.0002015,2]
[368662372,1751274649927,-151.0,0.00020152,4]
[368662373,1751274649938,-151.0,0.00020154,2]
[368662374,1751274649948,-3000.0,0.0002016,2]
[368662375,1751274649957,-151.0,0.0002016,2]
[368662376,1751274649967,-151.0,0.0002016,2]
[368662377,1751274649979,-3000.0,0.0002017,2]
[368662378,1751274649989,-3000.0,0.0002018,2]
[368662379,1751274649998,-150.0,0.00020184,2]
[368662380,1751274650008,-150.0,0.00020184,2]
[368662381,1751274650017,-966.0,0.00020184,2]
[368662382,1751274650027,-268.483024,0.00020187,2]
[368662383,1751274650036,-3000.0,0.0002019,2]
[368662384,1751274650046,-3000.0,0.000202,2]
[368662385,1751274650056,-151.0,0.000202,4]
[368662386,1751274650067,-3000.0,0.0002021,2]
[368662387,1751274650076,-151.0,0.0002021,2]
[368662388,1751274650086,-151.585958,0.0002021,2]
[368662389,1751274650095,-151.585958,0.0002021,2]
[368662390,1751274650105,-326.750667,0.0002021,2]
[368662391,1751274650116,-337.474726,0.0002021,2]
[368662392,1751274650127,-337.474726,0.0002021,2]
[368662393,1751274650137,-151.0,0.0002021,2]
[368662394,1751274650146,-151.0,0.0002021,2]
[368662395,1751274650156,-151.0,0.0002021,2]
[368662396,1751274650166,-151.0,0.0002021,2]
[368662397,1751274650176,-151.0,0.0002021,2]
[368662398,1751274650186,-151.0,0.0002021,2]
[368662399,1751274650196,-3000.0,0.0002022,2]
[368662400,1751274650206,-1887.3659336,0.00020226,2]
[368662401,1751274650216,-3000.0,0.0002023,2]
[368662402,1751274650225,-3000.0,0.0002024,2]
[368662403,1751274650235,-151.0,0.0002024,2]
[368662404,1751274650244,-151.0,0.0002024,2]
[368662405,1751274650387,-251.066794,0.0002024,2]
[368662406,1751274650398,-251.066794,0.0002024,2]
[368662407,1751274650408,-3000.0,0.0002025,2]
[368662408,1751274650417,-3000.0,0.0002026,2]
[368662409,1751274650427,-3000.0,0.0002027,2]
[368662410,1751274650436,-3000.0,0.0002028,2]
[368662411,1751274650446,-5727.186046,0.0002029,2]
[368662412,1751274650455,-4604.94239583,0.00020348,3]
[368662413,1751274650465,-151.0,0.00020357,4]
[368662414,1751274650475,-460.0,0.00020379,2]
[368662415,1751274650484,-3532.7,0.00020379,2]
[368662416,1751274650493,-953.92,0.00020379,2]
[368662417,1751274650502,-1026.59,0.00020379,2]
[368662418,1751274650511,-460.0,0.00020379,2]
[368662419,1751274650521,-1002.63,0.00020379,2]
[368662420,1751274650530,-460.0,0.00020379,2]
[368662421,1751274650539,-460.0,0.00020379,2]
[368662422,1751274650548,-1278.91,0.00020379,2]
[368662423,1751274650557,-495.37,0.00020379,2]
[368662424,1751274650567,-1152.66,0.00020379,2]
[368662425,1751274650576,-1915.1,0.00020379,2]
[368662426,1751274650585,-737.91,0.00020379,2]
[368662427,1751274650595,-466.62,0.00020379,2]
[368662428,1751274650605,-469.53,0.00020379,2]
[368662429,1751274650615,-498.91,0.00020379,2]
[368662430,1751274650625,-563.21,0.00020379,2]
[368662431,1751274650634,-830.77,0.00020379,2]
[368662432,1751274650644,-524.16,0.00020379,2]
[368662433,1751274650654,-460.0,0.00020379,2]
[368662434,1751274650665,-151.0,0.00020381,2]
[368662435,1751274650675,-151.0,0.00020381,2]
[368662436,1751274650684,-151.0,0.00020381,2]
[368662437,1751274650694,-496.29,0.00020381,2]
[368662438,1751274650703,-545.69,0.00020381,2]
[368662439,1751274650713,-460.0,0.00020381,2]
[368662440,1751274650722,-987.33,0.00020381,2]
[368662441,1751274650732,-460.0,0.00020381,2]
[368662442,1751274650741,-712.32,0.00020381,2]
[368662443,1751274650751,-517.37,0.00020381,2]
[368662444,1751274650760,-2247.3,0.00020381,2]
[368662445,1751274650770,-460.0,0.00020381,2]
[368662446,1751274650779,-157.85562807,0.00020381,2]
[368662447,1751274650794,-495.36437193,0.00020381,2]
[368662448,1751274650803,-151.0,0.00020382,2]
[368662449,1751274650813,-151.0,0.00020384,2]
[368662450,1751274650823,-223.81103246,0.00020394,2]
[368662451,1751274650835,-830.6395,0.00020394,2]
[368662459,1751275218236,276.685947,0.00017186,2]
[368662460,1751275218919,-165.93352946,0.00018086,2]
[368662462,1751275230140,166.0,0.00017186,2]
[368662466,1751275430561,610.6326639,0.00017185,2]
[368662470,1751275540874,24900.0,0.00017184,2]
[368662480,1751275676567,241.634721,0.00013699,2]
[368662486,1751275737348,-154.26491177,0.00018175,2]
[368662494,1751275798021,-53.13508823,0.00018175,2]
[368662495,1751275798048,-127.0125501,0.00018181,2]
[368662592,1751275836719,-207.4,0.00018173,2]
[368662593,1751275836729,-300.0,0.00018181,2]
[368662594,1751275836738,-300.0,0.00018181,2]
[368662595,1751275836747,-300.0,0.00018181,2]
[368662596,1751275836756,-244.0,0.00018181,2]
[368662597,1751275836765,-1200.0,0.00018181,2]
[368662598,1751275836775,-458.83900975,0.00018182,2]
[368662599,1751275836784,-460.0,0.00018182,2]
[368662600,1751275836794,-460.0,0.00018182,2]
[368662601,1751275836803,-500.0,0.00018182,2]
[368662602,1751275836812,-500.0,0.00018182,2]
[368662603,1751275836822,-500.0,0.00018182,2]
[368662604,1751275836831,-500.0,0.00018182,2]
[368662605,1751275836840,-500.0,0.00018182,2]
[368662606,1751275836850,-540.0,0.00018182,2]
[368662607,1751275836859,-500.0,0.00018182,2]
[368662608,1751275836869,-591.32060287,0.00018182,2]
[368662609,1751275836878,-500.0,0.00018182,2]
[368662610,1751275836887,-500.0,0.00018182,2]
[368662611,1751275836897,-406.37014879,0.00018182,2]
[368662612,1751275836907,-231.92719375,0.00018182,2]
[368662613,1751275836917,-487.27871319,0.00018182,2]
[368662614,1751275836926,-355.0,0.00018182,2]
[368662615,1751275836935,-156.26334986,0.00018182,2]
[368662616,1751275836945,-550.21841317,0.00018183,2]
[368662617,1751275836954,-1200.0,0.00018183,2]
[368662618,1751275836963,-460.0,0.00018183,2]
[368662619,1751275836972,-580.10412807,0.00018183,2]
[368662620,1751275836981,-460.0,0.00018183,2]
[368662621,1751275836990,-460.0,0.00018183,2]
[368662622,1751275837000,-463.82084155,0.00018183,2]
[368662623,1751275837009,-460.0,0.00018183,2]
[368662624,1751275837018,-460.0,0.00018183,2]
[368662625,1751275837028,-460.0,0.00018183,2]
[368662626,1751275837038,-460.0,0.00018183,2]
[368662627,1751275837050,-460.0,0.00018183,2]
[368662628,1751275837059,-293.31805144,0.00018183,2]
[368662629,1751275837068,-460.0,0.00018183,2]
[368662630,1751275837077,-460.0,0.00018183,2]
[368662631,1751275837086,-460.0,0.00018183,2]
[368662632,1751275837096,-460.0,0.00018183,2]
[368662633,1751275837105,-596.2,0.00018183,2]
[368662634,1751275837114,-641.62,0.00018183,2]
[368662635,1751275837123,-44881.80859173,0.00018183,2]
[368662636,1751275837138,-5118.19140827,0.00018183,2]
[368662637,1751275837147,-368.344031,0.00018184,2]
[368662638,1751275837157,-540.0,0.00018184,2]
[368662639,1751275837166,-460.0,0.00018184,2]
[368662640,1751275837177,-460.0,0.00018184,2]
[368662641,1751275837186,-580.0,0.00018184,2]
[368662642,1751275837195,-460.0,0.00018184,2]
[368662643,1751275837205,-540.0,0.00018184,2]
[368662644,1751275837214,-463.85462331,0.00018184,2]
[368662645,1751275837223,-540.0,0.00018184,2]
[368662646,1751275837232,-626.64,0.00018184,2]
[368662647,1751275837242,-801.68,0.00018184,2]
[368662648,1751275837251,-720.41,0.00018184,2]
[368662649,1751275837260,-460.0,0.00018184,2]
[368662650,1751275837273,-54.22720365,0.00018184,2]
[368662651,1751275837286,-405.77279635,0.00018184,2]
[368662652,1751275837295,-461.2,0.00018184,2]
[368662653,1751275837304,-460.0,0.00018184,2]
[368662654,1751275837316,-160.0,0.00018185,2]
[368662655,1751275837326,-460.0,0.00018186,2]
[368662656,1751275837337,-2207.94,0.00018186,2]
[368662657,1751275837347,-460.0,0.00018186,2]
[368662658,1751275837357,-460.0,0.00018186,2]
[368662659,1751275837366,-460.0,0.00018186,2]
[368662660,1751275837375,-460.0,0.00018186,2]
[368662661,1751275837385,-460.0,0.00018186,2]
[368662662,1751275837394,-617.08,0.00018186,2]
[368662663,1751275837405,-460.0,0.00018186,2]
[368662664,1751275837416,-1196.94,0.00018186,2]
[368662665,1751275837425,-460.0,0.00018186,2]
[368662666,1751275837436,-460.0,0.00018186,2]
[368662667,1751275837445,-460.0,0.00018186,2]
[368662668,1751275837454,-460.0,0.00018186,2]
[368662669,1751275837464,-460.0,0.00018186,2]
[368662670,1751275837473,-1404.56,0.00018186,2]
[368662671,1751275837482,-519.24,0.00018186,2]
[368662672,1751275837492,-460.0,0.00018187,2]
[368662673,1751275837501,-460.0,0.00018187,2]
[368662674,1751275837511,-460.0,0.00018187,2]
[368662675,1751275837520,-460.0,0.00018187,2]
[368662676,1751275837529,-460.0,0.00018187,2]
[368662677,1751275837538,-460.0,0.00018187,2]
[368662678,1751275837547,-460.0,0.00018456,2]
[368662679,1751275837556,-460.0,0.00018457,2]
[368662680,1751275837566,-460.0,0.00018457,2]
[368662681,1751275837575,-596.2,0.00018457,2]
[368662682,1751275837584,-641.62,0.00018457,2]
[368662683,1751275837593,-626.64,0.00018458,2]
[368662684,1751275837603,-225.55130379,0.00018458,2]
[368662687,1751275838683,-576.12869621,0.00018458,2]
[368662688,1751275838692,-589.61918327,0.00018458,2]
[368662689,1751275838737,-130.79081673,0.00018458,2]
[368662690,1751275838747,-297.25457248,0.00018458,2]
[368662691,1751275838759,-162.74542752,0.00018458,2]
[368662692,1751275838768,-461.2,0.00018458,2]
[368662693,1751275838777,-159.62,0.00018458,2]
[368662694,1751275838786,-460.0,0.0001846,2]
[368662695,1751275838795,-850.06014,0.0001846,2]
[368662696,1751275838806,-1357.87986,0.0001846,2]
[368662697,1751275838817,-460.0,0.0001846,2]
[368662698,1751275838826,-66.24514,0.0001846,2]
[368662700,1751275840924,-393.75486,0.0001846,2]
[368662701,1751275840934,-460.0,0.0001846,2]
[368662702,1751275840943,-617.08,0.0001846,2]
[368662703,1751275840952,-460.0,0.0001846,2]
[368662704,1751275840962,-338.58525393,0.0001846,2]
[368662721,1751275843636,-858.35474607,0.0001846,2]
[368662722,1751275843646,-460.0,0.0001846,2]
[368662723,1751275843655,-460.0,0.0001846,2]
[368662724,1751275843665,-138.24893139,0.0001846,2]
[368662725,1751275843690,-321.75106861,0.0001846,2]
[368662727,1751275843699,-100.0886526,0.0001846,2]
[368662728,1751275843711,-359.9113474,0.0001846,2]
[368662729,1751275843720,-460.0,0.0001846,2]
[368662730,1751275843730,-98.05522308,0.0001846,2]
[368662738,1751275872331,-281.59543759,0.00018182,2]
[368662739,1751275877815,-81.54208997,0.00018182,2]
[368662740,1751275877838,-73.87706627,0.00018183,2]
[368662765,1751276479781,445.77581849,0.00018182,7]
[368662766,1751276484625,10000.0,0.00018013,2]
[368662767,1751276492665,10000.0,0.00018013,2]
[368662768,1751276533150,10000.0,0.00018013,2]
[368662778,1751276598529,24900.0,0.00017469,2]
[368662784,1751276756871,-150.0,0.00020547,14]
[368662785,1751276764300,-150.0,0.00020547,14]
[368662786,1751276775484,-150.0,0.00020547,14]
[368662787,1751276780281,229.552984,0.00013699,2]
[368662789,1751276888161,-50.0,0.00020547,14]
[368662790,1751276888188,-100.0,0.000207,30]
[368662791,1751276891206,-112.015283,0.000207,30]
[368662792,1751276891234,-37.984717,0.00021095,15]
[368662793,1751276905983,-150.0,0.00021095,15]
[368662794,1751276907434,-150.0,0.00021095,15]
[368662795,1751276909899,-150.0,0.00021095,15]
[368662796,1751276912312,-12.015283,0.00021095,15]
[368662797,1751276912343,-137.984717,0.00021643,16]
[368662798,1751276919179,-150.0,0.00021643,16]
[368662799,1751276922185,-150.0,0.00021643,16]
[368662853,1751277031826,-155.0,0.00018181,2]
[368662855,1751277031836,-1200.0,0.00018181,2]
[368662858,1751277031846,-160.0,0.00018182,2]
[368662861,1751277031855,-460.0,0.00018182,2]
[368662864,1751277031865,-300.0,0.00018182,2]
[368662867,1751277031876,-204.0,0.00018182,2]
[368662870,1751277031886,-300.0,0.00018182,2]
[368662873,1751277031896,-460.0,0.00018182,2]
[368662875,1751277031907,-460.0,0.00018182,2]
[368662877,1751277031917,-460.0,0.00018183,2]
[368662879,1751277031927,-1341.95,0.00018183,2]
[368662881,1751277031936,-460.0,0.00018183,2]
[368662883,1751277031945,-417.88693317,0.00018186,2]
[368662886,1751277031958,-42.11306683,0.00018186,2]
[368662888,1751277031967,-460.0,0.00018186,2]
[368662890,1751277031976,-460.0,0.00018186,2]
[368662892,1751277031986,-207.4,0.00018445,2]
[368662893,1751277031994,-460.0,0.00018455,2]
[368662895,1751277032004,-460.0,0.00018456,2]
[368662898,1751277032014,-306.49000776,0.00018456,2]
[368662900,1751277032025,-153.50999224,0.00018456,2]
[368662902,1751277032035,-944.36,0.00018456,2]
[368662904,1751277032044,-460.0,0.00018456,2]
[368662906,1751277032054,-546.51,0.00018456,2]
[368662908,1751277032063,-2023.94,0.00018456,2]
[368662910,1751277032073,-460.0,0.00018456,2]
[368662912,1751277032082,-571.34,0.00018456,2]
[368662914,1751277032091,-660.38,0.00018456,2]
[368662916,1751277032100,-1131.1,0.00018456,2]
[368662918,1751277032110,-734.87,0.00018456,2]
[368662920,1751277032119,-460.0,0.00018456,2]
[368662922,1751277032128,-460.0,0.00018456,2]
[368662924,1751277032138,-460.0,0.00018456,2]
[368662926,1751277032147,-201.36553905,0.00018456,2]
[368662928,1751277032156,-460.0,0.00018456,2]
[368662930,1751277032165,-460.0,0.00018456,2]
[368662932,1751277032174,-460.0,0.00018456,2]
[368662934,1751277032183,-460.0,0.00018456,2]
[368662936,1751277032192,-305.2096316,0.00018456,2]
[368662937,1751277032202,-460.0,0.00018456,2]
[368662940,1751277032211,-460.0,0.00018456,2]
[368662941,1751277032220,-460.0,0.00018456,2]
[368662942,1751277032230,-256.92468904,0.00018456,2]
[368662943,1751277032242,-203.07531096,0.00018456,2]
[368662945,1751277032251,-460.0,0.00018457,2]
[368662947,1751277032260,-1341.95,0.00018457,2]
[368662949,1751277032269,-460.0,0.00018457,2]
[368662951,1751277032279,-1097.19,0.00018457,2]
[368662953,1751277032288,-460.0,0.00018457,2]
[368662955,1751277032297,-497.6,0.00018457,2]
[368662957,1751277032306,-460.0,0.0001846,2]
[368662959,1751277032315,-460.0,0.0001846,2]
[368662961,1751277032325,-460.0,0.0001846,2]
[368662963,1751277032334,-500.0,0.0001846,2]
[368662965,1751277032343,-98.28942886,0.0001846,2]
[368662967,1751277032355,-401.71057114,0.0001846,2]
[368662969,1751277032364,-164.90033499,0.00018623,2]
[368662971,1751277032373,-460.0,0.00018722,2]
[368662974,1751277032383,-460.0,0.00018722,2]
[368662976,1751277032392,-460.0,0.00018722,2]
[368662977,1751277032402,-292.19000933,0.00018723,2]
[368662979,1751277032411,-460.0,0.00018729,2]
[368662982,1751277032420,-460.0,0.0001873,2]
[368662984,1751277032429,-460.0,0.0001873,2]
[368662986,1751277032439,-944.36,0.0001873,2]
[368662987,1751277032449,-460.0,0.0001873,2]
[368662990,1751277032458,-546.51,0.0001873,2]
[368662992,1751277032467,-2023.94,0.0001873,2]
[368662994,1751277032477,-460.0,0.0001873,2]
[368662996,1751277032486,-571.34,0.0001873,2]
[368662998,1751277032495,-660.38,0.0001873,2]
[368663000,1751277032505,-1131.1,0.0001873,2]
[368663002,1751277032515,-734.87,0.0001873,2]
[368663004,1751277032524,-460.0,0.0001873,2]
[368663006,1751277032533,-460.0,0.0001873,2]
[368663008,1751277032542,-460.0,0.0001873,2]
[368663010,1751277032551,-460.0,0.0001873,2]
[368663012,1751277032561,-460.0,0.0001873,2]
[368663014,1751277032570,-460.0,0.0001873,2]
[368663016,1751277032580,-460.0,0.0001873,2]
[368663018,1751277032589,-460.0,0.00018731,2]
[368663020,1751277032599,-1341.95,0.00018731,2]
[368663022,1751277032608,-460.0,0.00018731,2]
[368663024,1751277032618,-1097.19,0.00018731,2]
[368663026,1751277032627,-460.0,0.00018731,2]
[368663028,1751277032636,-497.6,0.00018731,2]
[368663030,1751277032645,-460.0,0.00018734,2]
[368663032,1751277032654,-460.0,0.00018734,2]
[368663034,1751277032664,-286.88235385,0.00018734,2]
[368663103,1751277037833,-173.11764615,0.00018734,2]
[368663104,1751277037843,-565.65,0.00018734,2]
[368663105,1751277037853,-460.0,0.00018734,2]
[368663106,1751277037862,-2751.36536791,0.000189,2]
[368663108,1751277037871,-460.0,0.00018996,2]
[368663109,1751277037880,-460.0,0.00018996,2]
[368663110,1751277037890,-460.0,0.00018996,2]
[368663111,1751277037899,-159.319357,0.00019,2]
[368663112,1751277037910,-177.5677436,0.00019,2]
[368663113,1751277037920,-165.25319036,0.00019003,2]
[368663114,1751277037929,-460.0,0.00019003,2]
[368663115,1751277037938,-212.58,0.00019004,2]
[368663116,1751277037948,-460.0,0.00019004,2]
[368663117,1751277037957,-944.36,0.00019004,2]
[368663118,1751277037967,-460.0,0.00019004,2]
[368663119,1751277037976,-546.51,0.00019004,2]
[368663120,1751277037985,-2023.94,0.00019004,2]
[368663121,1751277037994,-217.56,0.00019004,2]
[368663122,1751277038003,-571.34,0.00019004,2]
[368663124,1751277038013,-660.38,0.00019004,2]
[368663126,1751277038022,-1131.1,0.00019004,2]
[368663128,1751277038035,-734.87,0.00019004,2]
[368663129,1751277038044,-460.0,0.00019004,2]
[368663131,1751277038054,-460.0,0.00019004,2]
[368663133,1751277038063,-460.0,0.00019004,2]
[368663135,1751277038072,-460.0,0.00019004,2]
[368663136,1751277038081,-460.0,0.00019004,2]
[368663138,1751277038090,-460.0,0.00019004,2]
[368663140,1751277038101,-1341.95,0.00019005,2]
[368663142,1751277038110,-460.0,0.00019005,2]
[368663144,1751277038119,-1097.19,0.00019005,2]
[368663145,1751277038127,-460.0,0.00019005,2]
[368663147,1751277038137,-497.6,0.00019005,2]
[368663149,1751277038146,-460.0,0.00019008,2]
[368663151,1751277038156,-305.22866265,0.00019008,2]
[368663153,1751277038165,-460.0,0.00019008,2]
[368663154,1751277038175,-565.65,0.00019008,2]
[368663156,1751277038184,-460.0,0.00019008,2]
[368663157,1751277038193,-160.0,0.00019047,2]
[368663159,1751277038203,-847.41730813,0.00019049,2]
[368663161,1751277038213,-837.16779106,0.00019049,2]
[368663163,1751277038222,-213.84631524,0.00019049,2]
[368663165,1751277038231,-160.0,0.00019049,2]
[368663167,1751277038240,-160.0,0.00019049,2]
[368663168,1751277038250,-12569.13231816,0.00019049,2]
[368663170,1751277038259,-230.31346914,0.00019049,2]
[368663171,1751277038268,-160.0,0.00019049,2]
[368663173,1751277038277,-160.0,0.00019049,2]
[368663175,1751277038287,-214.99848635,0.00019049,2]
[368663177,1751277038296,-153.0,0.00019068,2]
[368663178,1751277038306,-469.103992,0.00019178,2]
[368663179,1751277038316,-240.0,0.00019178,3]
[368663180,1751277038326,-460.0,0.0001927,2]
[368663181,1751277038335,-460.0,0.0001927,2]
[368663182,1751277038345,-460.0,0.0001927,2]
[368663183,1751277038354,-460.0,0.00019277,2]
[368663184,1751277038364,-36013.36827347,0.00019278,2]
[368663185,1751277038373,-16334.72272997,0.00019278,2]
[368663186,1751277038386,-2576.69729681,0.00019278,2]
[368663187,1751277038398,-2152.8,0.00019278,2]
[368663188,1751277038410,-1625.54331634,0.00019278,2]
[368663189,1751277038422,-515.37205676,0.00019278,2]
[368663196,1751277040091,-1421.1804627,0.00019278,2]
[368663239,1751277045950,-468.62,0.00018182,2]
[368663240,1751277045960,-458102.46613742,0.00019278,2]
[368663241,1751277045970,-460.0,0.00019278,2]
[368663242,1751277045979,-944.36,0.00019278,2]
[368663243,1751277045990,-460.0,0.00019278,2]
[368663244,1751277045999,-546.51,0.00019278,2]
[368663246,1751277046008,-2023.94,0.00019278,2]
[368663248,1751277046018,-571.34,0.00019278,2]
[368663250,1751277046028,-660.38,0.00019278,2]
[368663252,1751277046037,-1131.1,0.00019278,2]
[368663254,1751277046047,-734.87,0.00019278,2]
[368663256,1751277046057,-460.0,0.00019278,2]
[368663258,1751277046066,-460.0,0.00019278,2]
[368663259,1751277046076,-460.0,0.00019278,2]
[368663260,1751277046085,-460.0,0.00019278,2]
[368663261,1751277046095,-460.0,0.00019278,2]
[368663262,1751277046104,-460.0,0.00019278,2]
[368663263,1751277046113,-1088.09828607,0.00019278,2]
[368663264,1751277046123,-1341.95,0.00019279,2]
[368663265,1751277046133,-460.0,0.00019279,2]
[368663266,1751277046142,-1097.19,0.00019279,2]
[368663267,1751277046151,-460.0,0.00019279,2]
[368663268,1751277046161,-497.6,0.00019279,2]
[368663269,1751277046170,-460.0,0.00019282,2]
[368663270,1751277046180,-460.0,0.00019282,2]
[368663271,1751277046189,-565.65,0.00019282,2]
[368663272,1751277046199,-460.0,0.00019282,2]
[368663273,1751277046209,-18857.86735484,0.00019329,2]
[368663276,1751277288076,202.0,0.00017534,3]
[368663283,1751277647531,9798.0,0.00017671,2]
[368663284,1751277647554,10000.0,0.00017671,2]
[368663285,1751277647576,5102.0,0.00017671,2]
[368663307,1751277758487,241.33632681,0.00017901,2]
[368663312,1751277859067,218.075334,0.00013699,2]
[368663350,1751278232033,-460.0,0.00018182,2]
[368663352,1751278232042,-300.0,0.00018454,2]
[368663354,1751278232051,-1200.0,0.00018454,2]
[368663356,1751278232061,-461.49744104,0.00018455,2]
[368663357,1751278232070,-460.0,0.00018455,2]
[368663359,1751278232079,-460.0,0.00018455,2]
[368663361,1751278232089,-460.0,0.00018455,2]
[368663363,1751278232098,-464.3809786,0.00018455,2]
[368663366,1751278232108,-460.0,0.00018455,2]
[368663367,1751278232118,-460.0,0.00018455,2]
[368663370,1751278232127,-560.98375565,0.00018456,2]
[368663372,1751278232137,-460.0,0.00018456,2]
[368663374,1751278232147,-350.0,0.00018456,2]
[368663376,1751278232156,-223.0,0.0001863,3]
[368663377,1751278232165,-207.4,0.00018717,2]
[368663379,1751278232174,-460.0,0.00018727,2]
[368663381,1751278232183,-786.97,0.00018727,2]
[368663383,1751278232193,-568.02,0.00018727,2]
[368663385,1751278232203,-550.31,0.00018727,2]
[368663387,1751278232212,-864.03,0.00018727,2]
[368663389,1751278232221,-652.54,0.00018727,2]
[368663391,1751278232231,-460.0,0.00018727,2]
[368663393,1751278232239,-460.0,0.00018727,2]
[368663395,1751278232248,-462.12514312,0.00018727,2]
[368663397,1751278232258,-460.0,0.00018727,2]
[368663399,1751278232266,-460.0,0.00018727,2]
[368663401,1751278232275,-460.0,0.00018727,2]
[368663403,1751278232285,-460.0,0.00018728,2]
[368663405,1751278232294,-460.0,0.00018728,2]
[368663407,1751278232303,-460.0,0.00018728,2]
[368663409,1751278232312,-185.86150177,0.00018728,2]
[368663411,1751278232322,-225.35987057,0.00018728,2]
[368663413,1751278232334,-234.64012943,0.00018728,2]
[368663415,1751278232343,-460.0,0.00018728,2]
[368663417,1751278232352,-460.0,0.00018728,2]
[368663419,1751278232362,-1686.62,0.00018728,2]
[368663421,1751278232371,-460.0,0.00018728,2]
[368663423,1751278232380,-914.33,0.00018728,2]
[368663425,1751278232389,-460.0,0.00018728,2]
[368663427,1751278232399,-324.40987057,0.00018728,2]
[368663429,1751278232411,-135.59012943,0.00018728,2]
[368663431,1751278232420,-460.0,0.00018728,2]
[368663433,1751278232430,-460.0,0.00018728,2]
[368663435,1751278232442,-460.0,0.00018728,2]
[368663438,1751278232452,-460.0,0.00018728,2]